bitfinex/quotes_ETHUSD_20260130
["timestamp","ask_amount","ask_price","bid_price","bid_amount"]
[1769745603202,0.01824651,2741.0,2740.7,0.002]
[1769745603528,13.34814159,2740.8,2740.3,0.002]
[1769745603830,0.01824651,2740.8,2740.3,0.91430344]
[1769745604030,0.01824651,2740.8,2740.3,0.002]
[1769745604608,1.35488532,2741.0,2740.3,0.9143067]
[1769745604816,0.01824651,2740.8,2740.3,0.9143067]
[1769745605016,0.01824651,2740.8,2740.3,0.002]
[1769745605702,8.30539279,2741.6,2740.6,13.79958381]
[1769745605942,0.91191521,2741.5,2740.6,13.79958381]
[1769745606146,9.21728789,2741.6,2740.6,13.79958381]
[1769745607647,9.21728789,2741.6,2740.7,0.91217572]
[1769745609150,0.01824651,2741.2,2740.7,13.79958381]
[1769745609456,0.01824651,2741.2,2740.6,0.91218775]
[1769745609894,0.01824651,2741.2,2740.5,0.91224229]
[1769745610250,0.01824651,2741.0,2740.5,0.91224229]
[1769745612151,0.01824651,2741.0,2740.4,0.91227558]
[1769745613170,0.01824651,2741.0,2740.5,0.002]
[1769745613383,0.01824651,2741.0,2740.4,0.91227558]
[1769745613671,0.01924651,2740.8,2740.3,0.002]
[1769745613976,1.44719342,2740.8,2740.3,0.91430259]
[1769745614575,1.44719342,2740.8,2740.3,0.002]
[1769745615077,3.6660516,2741.4,2740.6,13.79958381]
[1769745615078,0.01824651,2741.4,2740.6,13.79958381]
[1769745616054,0.01824651,2741.2,2740.6,13.79958381]
[1769745617606,0.01824651,2741.2,2740.7,0.91217572]
[1769745619604,0.01824651,2741.0,2740.5,0.91221842]
[1769745620183,0.01824651,2740.6,2739.8,0.002]
[1769745620490,14.11214159,2741.3,2740.6,0.9121935]
[1769745620659,0.78224651,2741.3,2740.6,0.9121935]
[1769745621083,14.11214159,2741.3,2740.6,0.9121935]
[1769745621357,15.02413304,2741.3,2740.5,0.91223305]
[1769745621558,14.26020651,2741.1,2740.1,17.45105379]
[1769745621775,0.01824651,2740.9,2740.2,0.91234216]
[1769745621978,0.01824651,2741.1,2740.2,14.71192597]
[1769745622169,15.02412152,2741.3,2740.3,13.79958381]
[1769745622381,1.50241215,2741.2,2740.3,13.79958381]
[1769745623363,14.83230723,2741.2,2740.3,13.79958381]
[1769745623563,0.01824651,2741.1,2740.3,13.79958381]
[1769745625178,13.34814159,2741.1,2740.4,0.91227558]
[1769745625699,0.001,2740.9,2740.4,0.91227558]
[1769745627702,0.001,2740.9,2740.3,3.64921921]
[1769745628314,0.001,2740.9,2740.3,17.33645504]
[1769745629504,0.001,2740.9,2740.4,13.68723583]
[1769745629696,0.01824651,2741.3,2740.4,13.68723583]
[1769745630204,0.01824651,2741.3,2740.5,14.59947812]
[1769745630704,13.19543585,2741.6,2740.7,13.68723583]
[1769745631022,1.48712961,2741.5,2740.7,13.68723583]
[1769745631396,0.01824651,2741.4,2740.7,13.68723583]
[1769745632304,0.01824651,2741.4,2740.8,0.91214244]
[1769745634814,0.001,2741.6,2741.0,13.68723583]
[1769745635134,0.001,2741.6,2741.2,13.68723583]
[1769745635740,0.001,2741.6,2741.3,14.11146697]
[1769745636411,1.69495058,2742.2,2741.3,14.11146697]
[1769745636412,0.01924651,2742.2,2741.3,14.11146697]
[1769745637316,0.001,2741.4,2741.3,14.11146697]
[1769745637534,0.01924651,2742.2,2741.4,13.19949091]
[1769745637904,0.01924651,2742.2,2741.5,0.91190953]
[1769745640641,0.01924651,2742.2,2741.5,13.19949091]
[1769745643042,0.01924651,2742.2,2741.6,0.91187627]
[1769745644041,0.01924651,2742.2,2741.6,14.11136718]
[1769745644211,0.01924651,2742.2,2741.6,16.5417694]
[1769745644639,0.001,2742.2,2741.7,13.19949091]
[1769745644945,0.001,2742.2,2741.6,3.34227849]
[1769745645743,0.001,2742.2,2741.6,14.11136718]
[1769745649249,0.001,2742.0,2741.6,14.11136718]
[1769745650747,0.001,2742.0,2741.5,10.19269323]
[1769745650748,0.001,2742.0,2741.5,0.91189693]
[1769745651344,0.001,2742.0,2741.4,13.19949091]
[1769745653336,0.001,2742.0,2741.5,0.91190953]
[1769745654264,0.001,2742.0,2741.5,2.68782484]
[1769745654966,0.001,2742.0,2741.5,15.88731575]
[1769745656368,13.94329418,2741.9,2741.5,2.68782484]
[1769745656552,13.96154069,2741.9,2741.2,0.002]
[1769745658070,13.96154069,2741.9,2741.2,0.91400419]
[1769745658665,13.96154069,2741.9,2741.2,0.002]
[1769745658871,1.48743048,2741.8,2741.2,0.002]
[1769745661771,1.48743048,2741.8,2741.4,0.002]
[1769745661974,1.48843048,2741.8,2741.4,0.002]
[1769745664615,0.001,2741.8,2741.4,0.002]
[1769745667583,0.001,2741.8,2741.5,12.67225501]
[1769745668988,0.001,2742.0,2741.5,12.67225501]
[1769745669465,0.001,2742.0,2741.6,13.58413128]
[1769745671184,13.96154069,2742.8,2741.7,12.67225501]
[1769745671393,1.76074229,2742.7,2741.7,15.0499317]
[1769745671566,1.76074229,2742.7,2741.9,12.67225501]
[1769745671767,2.67225972,2742.7,2741.9,12.67225501]
[1769745672300,1.76074229,2742.7,2741.9,6.54508425]
[1769745672500,0.91149667,2742.8,2742.0,12.67225501]
[1769745674002,0.001,2742.6,2742.0,13.58397833]
[1769745674670,0.764,2743.0,2742.5,6.54508425]
[1769745675115,0.764,2743.0,2742.3,12.67225501]
[1769745675477,0.92954414,2743.4,2742.3,12.67225501]
[1769745675677,0.39302615,2743.6,2742.6,12.67225501]
[1769745675902,0.39302615,2743.6,2742.7,0.91151055]
[1769745676203,0.39302615,2743.6,2742.8,12.67225501]
[1769745678109,0.39302615,2743.6,2742.9,0.91144409]
[1769745678409,0.39302615,2743.6,2742.9,13.5836991]
[1769745678705,0.39302615,2743.6,2743.0,15.0497204]
[1769745679278,0.31175245,2743.6,2743.2,12.67225501]
[1769745680101,0.31175245,2743.6,2743.3,0.91131119]
[1769745680609,14.87242945,2744.6,2743.5,12.67225501]
[1769745680808,13.94329418,2744.6,2743.7,19.21733926]
[1769745681602,13.94329418,2744.6,2743.8,12.67225501]
[1769745681816,0.01824651,2744.7,2743.8,12.67225501]
[1769745681974,1.47255407,2744.6,2743.8,12.67225501]
[1769745682171,13.94329418,2744.7,2743.9,13.58336693]
[1769745682972,15.61808803,2744.9,2743.9,13.58336693]
[1769745683208,13.96154069,2744.8,2743.9,13.58336693]
[1769745683383,13.96154069,2744.8,2743.7,13.58341047]
[1769745683705,13.96154069,2744.8,2743.8,0.91114381]
[1769745684011,13.94329418,2744.6,2743.8,0.91114381]
[1769745685626,0.01824651,2744.4,2743.6,2.17841125]
[1769745685926,13.83594478,2744.6,2743.7,13.53968028]
[1769745686103,12.92505439,2744.6,2743.7,13.53968028]
[1769745686300,12.92605439,2744.6,2743.7,13.53968028]
[1769745686505,1.44896878,2744.5,2743.7,13.53968028]
[1769745686703,0.001,2744.6,2743.7,13.53968028]
[1769745686927,0.001,2744.6,2743.8,12.62850498]
[1769745687828,0.001,2744.6,2744.0,12.62850498]
[1769745689503,0.001,2744.6,2744.1,12.62850498]
[1769745690207,0.001,2744.6,2744.3,12.62850498]
[1769745690707,3.66070701,2745.4,2744.3,12.62850498]
[1769745690708,0.4123305,2745.7,2744.4,12.62850498]
[1769745690910,0.4123305,2745.7,2744.8,12.62850498]
[1769745691499,1.32284929,2745.7,2744.8,12.62850498]
[1769745692140,0.4123305,2745.7,2744.9,19.15317896]
[1769745692321,0.4123305,2745.7,2744.9,13.53926946]
[1769745693102,1.83711923,2745.7,2744.9,13.53926946]
[1769745693432,3.845,2747.4,2744.9,13.53926946]
[1769745693433,12.90680788,2746.3,2745.3,12.62850498]
[1769745693731,13.81705773,2746.5,2745.3,12.62850498]
[1769745694034,12.90680788,2746.5,2745.3,12.62850498]
[1769745694228,13.83526757,2746.7,2745.5,12.62850498]
[1769745694404,0.01824651,2746.5,2745.5,12.62850498]
[1769745695234,0.01824651,2746.3,2745.5,12.62850498]
[1769745696042,13.99643006,2746.1,2745.3,0.91062622]
[1769745696339,13.99643006,2745.7,2744.8,14.28508885]
[1769745697044,13.97818355,2745.4,2744.3,0.91095863]
[1769745697343,13.97818355,2745.2,2744.3,0.91095863]
[1769745697508,13.97818355,2745.2,2743.7,6.52467398]
[1769745697509,13.99643006,2745.1,2743.5,13.37429818]
[1769745697709,13.99643006,2745.1,2744.2,0.91100817]
[1769745697930,13.99643006,2745.1,2743.9,3.64433605]
[1769745698131,13.99643006,2745.1,2744.1,0.91104298]
[1769745698333,13.97818355,2745.0,2744.0,17.0186037]
[1769745698543,1.39964301,2744.9,2744.1,13.37429818]
[1769745698733,0.91068046,2745.2,2744.1,13.37429818]
[1769745699148,14.88886401,2745.2,2744.1,13.37429818]
[1769745700425,13.97818355,2745.2,2744.2,0.91101231]
[1769745700627,14.88886572,2745.2,2744.2,14.28531049]
[1769745701818,14.88886572,2745.2,2744.1,0.91102543]
[1769745702020,13.97818355,2745.0,2744.0,0.91107662]
[1769745702546,13.97818355,2745.0,2743.9,0.91111192]
[1769745702547,14.90721005,2744.9,2743.9,0.91111192]
[1769745702846,14.88896354,2744.9,2743.9,0.91111192]
[1769745703242,16.39604647,2745.1,2744.0,13.37429818]
[1769745703447,14.9071599,2745.1,2743.9,0.91111192]
[1769745704452,14.9071599,2745.1,2743.8,17.01882771]
[1769745704453,13.97818355,2744.8,2743.8,0.91113686]
[1769745704631,13.97818355,2744.6,2743.7,0.91117833]
[1769745704946,13.97818355,2744.6,2743.6,2.17841566]
[1769745705164,15.46708654,2744.5,2743.6,2.17841566]
[1769745705365,15.46708654,2744.5,2743.5,14.28552469]
[1769745705660,15.46708654,2744.5,2743.4,1.84144524]
[1769745705818,15.46708654,2744.5,2743.1,0.002]
[1769745705819,13.97818355,2743.9,2743.1,0.002]
[1769745706018,13.97818355,2743.9,2742.3,13.37429818]
[1769745706019,13.97818355,2743.7,2742.6,0.9115205]
[1769745706239,13.97818355,2743.5,2742.6,0.9115205]
[1769745706616,14.90770803,2743.4,2742.3,13.37429818]
[1769745706819,14.90770803,2743.4,2742.1,0.002]
[1769745707017,0.01824651,2743.2,2742.3,0.91164325]
[1769745707271,0.01824651,2743.4,2742.3,14.28594143]
[1769745707428,2.21251822,2743.6,2742.5,13.37429818]
[1769745707629,2.21251822,2743.6,2742.1,0.91370414]
[1769745707630,13.97818355,2743.3,2742.1,0.91370414]
[1769745708041,13.99643006,2743.2,2742.2,0.91167502]
[1769745708518,13.99643006,2743.0,2742.1,0.002]
[1769745708922,13.99643006,2743.0,2741.4,0.91392925]
[1769745708923,0.01824651,2742.5,2741.4,0.91392925]
[1769745709130,13.97818355,2742.4,2741.4,0.91392925]
[1769745709450,15.39607307,2742.3,2741.4,0.002]
[1769745710452,15.39607307,2742.3,2741.5,0.002]
[1769745710615,15.39607307,2742.3,2741.1,0.002]
[1769745710616,13.99643006,2742.1,2741.1,0.002]
[1769745710819,13.97818355,2741.8,2740.7,0.91215468]
[1769745711018,15.26122099,2741.7,2740.6,0.91218764]
[1769745711250,1.28303744,2741.7,2740.7,14.28647374]
[1769745711454,0.91167675,2742.2,2740.7,14.28647374]
[1769745711666,13.99643006,2742.1,2740.7,0.91216449]
[1769745713554,13.99643006,2742.1,2740.6,3.64870288]
[1769745713555,13.97818355,2741.9,2740.6,3.64870288]
[1769745713859,13.99643006,2741.9,2740.6,0.912209]
[1769745714041,13.97818355,2741.6,2740.2,13.37429818]
[1769745714247,13.97818355,2741.4,2740.1,13.37629818]
[1769745714559,13.97818355,2741.4,2740.4,0.91225819]
[1769745714725,13.97818355,2741.4,2740.1,0.002]
[1769745714726,13.97818355,2741.2,2740.1,0.002]
[1769745715053,13.97818355,2741.0,2740.1,0.002]
[1769745715459,13.97818355,2741.0,2740.1,0.91437474]
[1769745715653,13.97818355,2741.0,2739.9,3.65176059]
[1769745715654,14.36164893,2740.9,2739.9,0.002]
[1769745715824,14.80541533,2740.8,2739.5,0.91457305]
[1769745716026,0.764,2740.7,2739.5,0.91457305]
[1769745716345,0.764,2740.7,2739.5,14.87621681]
[1769745716727,14.21353977,2740.7,2739.5,0.91457305]
[1769745717442,1.37412207,2740.8,2739.6,13.96364376]
[1769745717639,2.28627942,2740.8,2739.6,13.96364376]
[1769745717960,14.04484934,2740.7,2739.6,0.002]
[1769745718139,14.04484934,2740.7,2739.6,0.91454115]
[1769745718965,0.59530957,2740.7,2739.6,14.87618491]
[1769745719143,0.764,2740.8,2739.6,14.87618491]
[1769745719342,1.67615037,2740.8,2739.6,14.87618491]
[1769745720876,13.43129326,2740.7,2739.6,0.91454115]
[1769745721074,0.91215037,2740.8,2739.6,0.9145361]
[1769745721283,0.01824651,2741.0,2739.6,14.87617986]
[1769745721442,0.01824651,2741.0,2739.8,13.96164376]
[1769745721646,0.93035281,2741.0,2739.9,0.91244205]
[1769745721847,0.01824651,2741.0,2739.9,0.91244205]
[1769745722159,18.72971578,2741.2,2739.9,14.87408581]
[1769745722160,0.8681121,2741.2,2739.9,14.87408581]
[1769745728876,15.22967602,2741.2,2739.9,14.87408581]
[1769745729084,1.5229676,2741.1,2739.9,17.27693618]
[1769745729682,0.8681121,2741.2,2739.9,17.27693618]
[1769745733308,14.34303651,2742.0,2740.0,13.96164376]
[1769745733806,0.001,2741.0,2740.1,13.96164376]
[1769745734973,0.001,2741.0,2740.3,13.96164376]
[1769745735608,13.43129326,2742.0,2740.3,13.96164376]
[1769745735902,13.43129326,2742.0,2740.2,0.91234216]
[1769745735903,1.34505398,2741.9,2740.5,13.96164376]
[1769745736281,14.77634724,2741.9,2740.5,13.96164376]
[1769745736983,14.77634724,2741.9,2740.6,14.87385276]
[1769745737177,1.34505398,2741.9,2740.6,14.87385276]
[1769745737402,0.91175313,2742.0,2740.6,14.87385276]
[1769745737599,14.34304639,2742.0,2740.6,14.87385276]
[1769745738479,13.43129326,2741.8,2740.6,14.87385276]
[1769745739611,14.34310731,2741.8,2740.6,0.912209]
[1769745739908,15.23215216,2741.7,2740.6,0.912209]
[1769745740093,1.8008589,2741.7,2740.6,14.87385276]
[1769745740288,14.36133824,2741.9,2740.6,14.87385276]
[1769745740688,13.44953977,2741.9,2740.6,14.87385276]
[1769745741221,14.36132229,2741.9,2740.6,0.912209]
[1769745741514,13.43129326,2741.6,2740.6,0.912209]
[1769745743005,13.43129326,2741.2,2740.0,13.96164376]
[1769745743330,15.68830511,2741.1,2740.1,3.64949627]
[1769745743628,13.43129326,2741.1,2740.1,3.64949627]
[1769745744199,14.36153358,2741.3,2740.1,17.61114003]
[1769745744596,14.36153358,2741.3,2740.1,3.64949627]
[1769745745133,14.36153358,2741.3,2740.0,0.91237546]
[1769745745454,14.36153358,2741.3,2739.8,0.00100196]
[1769745745455,13.43129326,2740.6,2739.8,0.00100196]
[1769745745911,13.43129326,2740.6,2740.0,0.002]
[1769745747213,13.17518584,2740.4,2740.0,3.91e-06]
[1769745748244,13.17518584,2740.4,2739.8,0.00100196]
[1769745748542,14.49270442,2740.3,2739.5,0.002]
[1769745748742,13.19343235,2740.3,2739.5,0.002]
[1769745748908,13.19343235,2740.3,2739.2,0.002]
[1769745748909,13.19343235,2739.9,2739.2,0.002]
[1769745749112,0.91247536,2739.8,2739.2,0.002]
[1769745749315,1.41059077,2739.7,2739.2,0.002]
[1769745750251,1.41059077,2739.7,2739.2,13.8387885]
[1769745750551,0.9123695,2740.2,2739.2,13.8387885]
[1769745750850,13.17518584,2739.9,2739.2,0.002]
[1769745751148,13.17518584,2739.7,2739.0,0.002]
[1769745751449,15.40707105,2739.6,2739.0,0.002]
[1769745751618,15.40707105,2739.6,2739.0,0.001]
[1769745752849,15.42531756,2739.6,2738.6,0.002]
[1769745753050,15.42531756,2739.6,2738.6,0.91486608]
[1769745753345,15.42531756,2739.6,2738.6,0.002]
[1769745753515,14.2264945,2739.5,2738.6,0.002]
[1769745754243,14.9914945,2739.5,2738.6,0.002]
[1769745755352,12.84743582,2739.4,2738.6,0.002]
[1769745755755,12.84743582,2739.4,2738.0,3.65203418]
[1769745755756,12.84743582,2739.1,2737.6,0.002]
[1769745755960,12.84743582,2739.1,2738.1,13.72829896]
[1769745755961,1.28656823,2739.0,2738.1,13.72829896]
[1769745756141,1.28656823,2739.0,2738.1,12.81525709]
[1769745756347,1.28656823,2739.0,2738.1,13.7282901]
[1769745756553,0.765,2739.2,2738.1,13.7282901]
[1769745756958,0.01824651,2739.1,2738.1,13.72829864]
[1769745757434,0.91274187,2739.0,2738.8,0.002]
[1769745757622,0.930973,2739.1,2738.1,13.72730255]
[1769745757822,0.01824651,2739.1,2738.5,0.002]
[1769745758155,13.76008568,2739.3,2738.5,0.002]
[1769745758347,1.74288999,2739.2,2738.5,0.002]
[1769745758859,14.60857232,2739.2,2738.5,0.002]
[1769745759557,0.91270855,2739.1,2738.5,0.002]
[1769745760548,13.76014437,2739.1,2738.5,0.002]
[1769745762160,0.01824651,2739.0,2738.5,0.001]
[1769745762464,1.3956313,2739.0,2738.5,0.001]
[1769745763033,14.24306712,2739.0,2737.9,3.65439452]
[1769745763240,14.24306712,2739.0,2738.1,0.91302146]
[1769745763751,14.24306712,2739.0,2737.9,13.73036567]
[1769745763752,15.15582718,2739.0,2737.9,13.73036567]
[1769745763954,1.05130866,2738.9,2737.9,13.73036567]
[1769745766037,0.93100657,2739.0,2737.9,13.73036567]
[1769745766958,12.84743582,2739.3,2737.9,13.73036567]
[1769745767256,0.93087679,2739.4,2737.9,13.73036567]
[1769745767839,0.01824651,2739.2,2737.9,13.73036567]
[1769745768071,12.86568233,2739.0,2737.9,13.73036567]
[1769745768371,1.37783909,2738.9,2737.9,13.73036567]
[1769745769174,14.22527491,2738.9,2737.9,13.73036567]
[1769745769473,0.01824651,2738.8,2737.9,13.73036567]
[1769745770173,0.01824651,2738.8,2738.1,0.002]
[1769745770875,0.93105515,2738.8,2738.1,0.002]
[1769745771073,0.23088942,2738.7,2738.1,0.002]
[1769745772246,1.14373965,2738.7,2738.1,0.002]
[1769745773079,0.23088942,2738.7,2738.1,0.002]
[1769745773571,0.23088942,2738.7,2738.1,12.81725709]
[1769745773787,1.37783909,2738.9,2738.1,12.81725709]
[1769745774075,1.67775232,2739.0,2738.1,12.81725709]
[1769745774571,0.765,2739.0,2738.2,13.72826563]
[1769745775068,0.765,2739.0,2738.1,3.65412553]
[1769745775069,12.86568233,2738.9,2738.1,0.002]
[1769745775978,0.01824651,2738.9,2738.1,13.45103142]
[1769745777954,0.93103666,2738.9,2738.1,13.45103142]
[1769745778272,0.001,2739.3,2738.1,14.36407244]
[1769745778857,0.001,2739.3,2738.2,13.44903142]
[1769745779062,0.93066237,2740.0,2738.2,13.44903142]
[1769745780093,0.93066237,2740.0,2738.3,0.9129752]
[1769745780288,0.93066237,2740.0,2738.4,13.44903142]
[1769745780601,14.67712816,2740.9,2739.1,13.44903142]
[1769745781097,0.01824651,2741.1,2739.6,13.44903142]
[1769745781294,0.765,2741.2,2739.7,13.44903142]
[1769745782296,0.001,2741.5,2739.9,13.44903142]
[1769745782512,0.001,2741.5,2740.1,13.44903142]
[1769745782513,0.001,2741.0,2740.1,13.44903142]
[1769745782654,0.001,2741.0,2740.1,13.41732486]
[1769745782861,0.001,2741.5,2740.1,13.44903142]
[1769745784319,0.001,2741.5,2740.3,13.44903142]
[1769745784977,1.23324464,2742.0,2740.4,21.31537055]
[1769745785206,0.001,2742.1,2740.5,13.44903142]
[1769745785403,0.01824651,2742.0,2740.5,13.44903142]
[1769745786621,0.01824651,2742.0,2740.7,13.44903142]
[1769745788631,0.01824651,2741.6,2740.8,0.91214244]
[1769745788916,0.01824651,2741.4,2740.7,0.9121623]
[1769745789120,1.39657079,2741.4,2740.7,0.9121623]
[1769745789340,1.39657079,2741.4,2739.6,13.44903142]
[1769745789341,13.76499631,2740.9,2739.6,13.44903142]
[1769745789633,13.76499631,2740.9,2739.9,0.91243342]
[1769745789634,0.01824651,2740.5,2739.9,0.91243342]
[1769745789787,0.01824651,2741.1,2739.9,14.81771101]
[1769745790111,1.39657079,2741.4,2739.9,14.81771101]
[1769745790307,0.01824651,2741.2,2739.9,14.81771101]
[1769745792699,0.01824651,2741.0,2739.9,14.81771101]
[1769745792907,0.01824651,2741.2,2739.9,14.81771101]
[1769745793229,0.01824651,2741.2,2740.1,13.44903142]
[1769745793904,0.78324651,2741.6,2740.1,13.45103142]
[1769745794101,1.69512687,2741.6,2740.1,13.45103142]
[1769745794419,0.001,2741.8,2740.1,13.45103142]
[1769745794610,0.001,2741.8,2740.7,13.44903142]
[1769745794801,0.001,2741.8,2740.9,13.44903142]
[1769745797133,0.001,2741.8,2741.0,14.3611073]
[1769745799124,0.001,2742.1,2741.1,13.44903142]
[1769745799439,13.7467498,2742.7,2741.1,13.44903142]
[1769745799614,0.91146667,2742.9,2741.1,13.44903142]
[1769745799933,15.42202794,2743.4,2741.6,13.44903142]
[1769745800150,1.5604493,2743.3,2741.8,13.44903142]
[1769745801209,1.5604493,2743.3,2742.0,13.44903142]
[1769745801210,0.91134441,2743.2,2742.0,13.44903142]
[1769745801707,2.47177789,2743.3,2742.0,13.44903142]
[1769745802645,1.67529734,2743.4,2742.0,13.44903142]
[1769745803305,0.92958099,2743.3,2742.1,14.36074142]
[1769745803910,0.92956229,2743.3,2742.1,14.36074142]
[1769745804110,0.01824651,2743.3,2742.1,14.36074142]
[1769745804321,0.92957053,2743.3,2742.2,1.78911962]
[1769745805116,0.92957053,2743.3,2742.2,15.23815104]
[1769745805640,0.92957053,2743.3,2742.3,0.91164351]
[1769745806141,0.92519504,2743.3,2742.3,0.91164351]
[1769745806341,0.764,2743.4,2742.3,14.88747805]
[1769745806648,1.53893377,2743.3,2742.4,16.00815629]
[1769745807244,1.53893377,2743.3,2742.4,2.03232175]
[1769745807433,15.25300964,2743.3,2742.3,0.91164351]
[1769745807832,0.001,2743.1,2742.2,3.64661982]
[1769745808421,0.001,2743.1,2742.0,0.002]
[1769745808628,13.69682936,2743.1,2742.1,14.88752389]
[1769745808827,1.36968294,2743.0,2742.1,14.88752389]
[1769745809017,0.001,2743.1,2742.1,14.88752389]
[1769745815251,14.62527493,2743.7,2742.2,13.5386584]
[1769745817152,14.76517097,2744.0,2742.4,13.5386584]
[1769745817358,14.76517097,2744.0,2742.4,14.3026584]
[1769745817532,1.4765171,2743.9,2742.6,13.5386584]
[1769745818552,0.91105385,2744.1,2742.6,13.5386584]
[1769745819074,0.28390679,2744.5,2742.9,13.5386584]
[1769745819426,0.28390679,2744.5,2743.1,13.5386584]
[1769745819627,13.8540771,2744.9,2743.3,13.5386584]
[1769745819847,0.92897952,2745.1,2743.4,13.5386584]
[1769745820055,1.84075406,2745.0,2743.6,13.5386584]
[1769745820856,13.83583059,2744.8,2743.5,1.35386584]
[1769745821059,14.74673542,2744.6,2743.4,0.91127797]
[1769745821357,14.74673542,2744.6,2743.4,14.44993637]
[1769745822750,13.83583059,2744.6,2743.4,14.44993637]
[1769745822945,0.92909503,2744.7,2743.4,14.44993637]
[1769745823142,1.84075406,2745.0,2743.4,14.44993637]
[1769745823470,0.27514886,2744.9,2743.6,13.5386584]
[1769745824274,14.12922596,2744.9,2743.5,1.80950483]
[1769745824472,14.12922596,2744.9,2743.4,0.91127797]
[1769745824672,13.83583059,2744.6,2743.4,0.91127797]
[1769745825049,0.91091273,2744.5,2743.1,14.45003603]
[1769745825245,14.76498983,2744.5,2743.1,14.45003603]
[1769745825847,0.01824651,2744.5,2743.1,14.45003603]
[1769745826101,0.27514886,2744.9,2743.5,13.5386584]
[1769745826879,0.9107169,2745.1,2743.5,13.5386584]
[1769745827041,0.9107169,2745.1,2743.7,13.5386584]
[1769745827845,14.764794,2745.1,2743.6,0.91121154]
[1769745828042,13.83583059,2744.8,2743.6,0.91121154]
[1769745828848,0.01824651,2744.9,2743.6,14.44986994]
[1769745829070,0.01824651,2744.9,2743.6,15.73745788]
[1769745829769,0.91081317,2744.8,2743.6,15.73745788]
[1769745831365,14.74664376,2744.8,2743.6,15.73745788]
[1769745831752,14.74664376,2744.8,2743.6,2.19879948]
[1769745831952,13.83583059,2744.4,2743.3,0.91128686]
[1769745832269,13.8540771,2744.3,2743.3,0.91130723]
[1769745832455,13.83583059,2744.3,2743.5,0.91124192]
[1769745832788,13.83583059,2744.3,2743.3,0.91128113]
[1769745833086,1.38358306,2744.2,2743.4,0.91125659]
[1769745833865,1.38358306,2744.2,2743.1,14.45003603]
[1769745834666,0.91096955,2744.4,2743.1,14.45003603]
[1769745835578,14.74773387,2744.6,2743.1,14.45003603]
[1769745835783,0.91190328,2744.6,2743.1,14.45003603]
[1769745840688,13.67476577,2744.6,2743.1,14.45003603]
[1769745841062,0.001,2744.6,2743.1,14.45003603]
[1769745841262,0.001,2744.6,2743.3,13.99122388]
[1769745841471,0.001,2744.6,2743.4,0.764]
[1769745841677,0.001,2744.6,2743.5,13.99122388]
[1769745842072,0.001,2744.6,2743.2,15.87717854]
[1769745842073,13.67475346,2744.6,2743.2,15.87717854]
[1769745843211,13.67475346,2744.6,2743.3,0.91131119]
[1769745843414,13.67475346,2744.6,2743.2,0.91133912]
[1769745843415,12.74461598,2744.3,2743.2,0.91133912]
[1769745843591,12.74461598,2744.3,2743.2,0.91134072]
[1769745843795,12.74461598,2743.9,2742.8,0.91145513]
[1769745844089,13.65650695,2744.6,2743.2,14.90256128]
[1769745844290,1.73000251,2744.5,2743.3,15.84601777]
[1769745844478,12.74461598,2744.3,2743.2,0.9113374]
[1769745844681,0.01824651,2744.4,2743.2,14.90256128]
[1769745845197,0.001,2744.6,2743.2,14.90256128]
[1769745849178,1.67471452,2745.1,2743.5,13.99122388]
[1769745849375,1.67471452,2745.1,2743.7,13.99122388]
[1769745849598,1.80621635,2745.0,2743.9,14.9023358]
[1769745852109,0.764,2745.1,2743.9,14.9023358]
[1769745852610,0.91063603,2745.4,2743.9,14.9023358]
[1769745852913,0.92881811,2745.6,2743.9,14.9023358]
[1769745853429,0.01824651,2745.6,2743.9,14.9023358]
[1769745853783,0.91053669,2745.7,2744.1,13.99122388]
[1769745854028,1.72971075,2745.6,2744.3,13.99122388]
[1769745855094,14.47432673,2745.6,2744.3,13.99122388]
[1769745855415,12.74461598,2745.4,2744.2,1.42247942]
[1769745856217,13.6562392,2745.4,2744.3,0.91097912]
[1769745859916,12.74461598,2745.2,2744.2,0.91099576]
[1769745860498,1.73168202,2745.3,2744.3,13.99122388]
[1769745860701,0.91162322,2745.4,2744.3,13.99122388]
[1769745860904,13.6562392,2745.4,2744.3,13.99122388]
[1769745861225,13.67448571,2745.4,2744.3,13.99122388]
[1769745861523,13.67448571,2745.4,2744.0,13.99122388]
[1769745862218,0.91161563,2745.4,2744.0,13.99122388]
[1769745862422,0.91161563,2745.4,2744.2,13.99122388]
[1769745862931,0.001,2745.4,2744.2,13.99122388]
[1769745865836,0.001,2745.4,2744.4,13.44725874]
[1769745867733,0.001,2745.4,2744.6,13.44725874]
[1769745867925,0.001,2745.2,2744.6,13.44725874]
[1769745868235,0.001,2745.4,2744.8,13.44725874]
[1769745868829,13.96722947,2746.1,2744.8,13.44725874]
[1769745868830,13.96721878,2746.1,2744.8,13.44725874]
[1769745869330,13.98546529,2746.1,2744.8,13.44725874]
[1769745869511,13.98546529,2746.1,2744.7,14.88307589]
[1769745869707,13.98546529,2746.1,2744.9,13.44725874]
[1769745869931,1.76268938,2746.0,2745.0,14.88306593]
[1769745870837,1.76268938,2746.0,2744.5,0.91088601]
[1769745870838,13.05681433,2745.7,2744.5,0.91088601]
[1769745871000,13.05681433,2745.5,2744.6,0.91086981]
[1769745871905,13.98567495,2745.4,2744.4,0.002]
[1769745872225,15.29318103,2745.4,2744.4,0.002]
[1769745872944,0.01824651,2745.8,2744.4,13.44925874]
[1769745873151,0.91047228,2745.9,2744.4,13.44925874]
[1769745873597,13.96725339,2746.0,2744.4,13.44925874]
[1769745873801,0.91043906,2746.0,2744.4,13.44925874]
[1769745874002,1.36747059,2746.0,2744.6,13.44725874]
[1769745874504,14.42428492,2746.0,2744.6,13.44725874]
[1769745874923,13.05681433,2745.8,2744.5,2.34693652]
[1769745875131,13.06033935,2745.6,2744.5,0.91091273]
[1769745875630,13.06033935,2745.4,2744.5,0.91091273]
[1769745875826,1.30785859,2745.3,2744.5,0.91091273]
[1769745875996,2.21851193,2745.3,2744.4,3.64577078]
[1769745876200,1.30785859,2745.3,2744.4,3.64577078]
[1769745877021,2.21850656,2745.3,2744.4,3.64577078]
[1769745877330,1.30785859,2745.3,2744.4,3.64577078]
[1769745877827,1.30785859,2745.3,2744.4,5.44616832]
[1769745879003,2.21851525,2745.3,2744.4,2.71334346]
[1769745879634,13.07858586,2745.7,2744.4,15.30648732]
[1769745879818,0.91056456,2745.6,2744.4,15.30648732]
[1769745880422,13.97082081,2745.8,2744.7,0.002]
[1769745880607,0.001,2745.4,2744.7,0.002]
[1769745880808,0.91048146,2745.8,2744.7,12.59514386]
[1769745881010,0.45703153,2746.0,2744.9,12.59314386]
[1769745881426,0.91036852,2746.2,2744.9,12.59314386]
[1769745882441,13.07858586,2746.1,2745.0,0.91074681]
[1769745882642,13.06033935,2745.8,2744.8,1.25951439]
[1769745882854,13.06033935,2745.8,2744.9,0.91077246]
[1769745883210,0.01824651,2745.9,2744.9,13.50391632]